[Event "Titled Tuesday Blitz March 08 Late 2022"]
[White "Chiu, Isaac"]
[Black "Dolzhykova, Kateryna"]
[WhiteFideId "30900654"]
[BlackFideId "14113414"]
[WhiteElo "2117"]
[BlackElo "2184"]
[Result "1-0"]
[Round "05"]
[TimeControl "180+1"]
[Date "2022.03.09"]
[WhiteClock "0:01:48"]
[BlackClock "0:00:21"]

1. c4 {[%clk 0:03:00]}  Nf6 {[%clk 0:02:36]} 2. e3 {[%clk 0:02:57]}  e6 {[%clk 0:02:37]} 3. g4 {[%clk 0:02:57]}  d5 {[%clk 0:02:33]} 4. g5 {[%clk 0:02:56]}  Ne4 {[%clk 0:02:33]} 5. h4 {[%clk 0:02:54]}  c5 {[%clk 0:02:15]} 6. d3 {[%clk 0:02:51]}  Nd6 {[%clk 0:02:04]} 7. Bg2 {[%clk 0:02:51]}  dxc4 {[%clk 0:01:47]} 8. dxc4 {[%clk 0:02:52]}  Nc6 {[%clk 0:01:42]} 9. b3 {[%clk 0:02:39]}  Bd7 {[%clk 0:01:30]} 10. Bb2 {[%clk 0:02:38]}  Qc7 {[%clk 0:01:27]} 11. Ne2 {[%clk 0:02:34]}  O-O-O {[%clk 0:01:16]} 12. a3 {[%clk 0:02:34]}  Rg8 {[%clk 0:01:15]} 13. Qc2 {[%clk 0:02:34]}  h6 {[%clk 0:01:14]} 14. Nbc3 {[%clk 0:02:24]}  Be7 {[%clk 0:01:07]} 15. g6 {[%clk 0:02:12]}  fxg6 {[%clk 0:00:55]} 16. Qxg6 {[%clk 0:02:12]}  Ne5 {[%clk 0:00:52]} 17. Qc2 {[%clk 0:02:10]}  Bc6 {[%clk 0:00:44]} 18. Bxc6 {[%clk 0:02:07]}  Qxc6 {[%clk 0:00:45]} 19. O-O-O {[%clk 0:02:07]}  Nf5 {[%clk 0:00:36]} 20. Nf4 {[%clk 0:02:03]}  g5 {[%clk 0:00:32]} 21. hxg5 {[%clk 0:02:00]}  hxg5 {[%clk 0:00:33]} 22. Nfd5 {[%clk 0:01:54]}  Rge8 {[%clk 0:00:26]} 23. Nb5 {[%clk 0:01:50]}  Kb8 {[%clk 0:00:21]} 24. Bxe5+ {[%clk 0:01:48]} 1-0


[Site "https://www.chess.com"]

[Event "Titled Tuesday Blitz March 08 Late 2022"]
[White "Clawitter, Craig"]
[Black "Desideri, Ricardo Maruchi"]
[WhiteFideId "2023105"]
[BlackFideId "2110440"]
[WhiteElo "2257"]
[BlackElo "1945"]
[Result "1-0"]
[Round "05"]
[TimeControl "180+1"]
[Date "2022.03.09"]
[WhiteClock "0:00:22"]
[BlackClock "0:00:03"]

1. e4 {[%clk 0:03:00]}  c5 {[%clk 0:02:55]} 2. Nc3 {[%clk 0:02:59]}  d6 {[%clk 0:02:52]} 3. f4 {[%clk 0:02:58]}  g6 {[%clk 0:02:51]} 4. Nf3 {[%clk 0:02:58]}  Bg7 {[%clk 0:02:51]} 5. Bb5+ {[%clk 0:02:57]}  Nc6 {[%clk 0:02:50]} 6. Bxc6+ {[%clk 0:02:55]}  bxc6 {[%clk 0:02:49]} 7. O-O {[%clk 0:02:54]}  e6 {[%clk 0:02:48]} 8. d3 {[%clk 0:02:53]}  Ne7 {[%clk 0:02:48]} 9. Qe1 {[%clk 0:02:52]}  O-O {[%clk 0:02:46]} 10. Qh4 {[%clk 0:02:41]}  d5 {[%clk 0:02:21]} 11. Bd2 {[%clk 0:02:15]}  Rb8 {[%clk 0:02:07]} 12. b3 {[%clk 0:02:04]}  Ba6 {[%clk 0:01:38]} 13. Rad1 {[%clk 0:01:54]}  Qc7 {[%clk 0:00:44]} 14. f5 {[%clk 0:01:43]}  exf5 {[%clk 0:00:41]} 15. Bh6 {[%clk 0:01:27]}  Bxc3 {[%clk 0:00:37]} 16. d4 {[%clk 0:01:14]}  f6 {[%clk 0:00:13]} 17. e5 {[%clk 0:00:54]}  Bxf1 {[%clk 0:00:07]} 18. exf6 {[%clk 0:00:48]}  Nc8 {[%clk 0:00:07]} 19. Bxf8 {[%clk 0:00:45]}  Kxf8 {[%clk 0:00:07]} 20. Rxf1 {[%clk 0:00:31]}  Bxd4+ {[%clk 0:00:04]} 21. Nxd4 {[%clk 0:00:29]}  cxd4 {[%clk 0:00:04]} 22. Qh6+ {[%clk 0:00:24]}  Kg8 {[%clk 0:00:03]} 23. Re1 {[%clk 0:00:22]} 1-0


[Site "https://www.chess.com"]

[Event "Titled Tuesday Blitz March 08 Late 2022"]
[White "Cori T., Deysi"]
[Black "Rangel, Daniel"]
[WhiteFideId "3801934"]
[BlackFideId "2124475"]
[WhiteElo "2341"]
[BlackElo "2225"]
[Result "1-0"]
[Round "05"]
[TimeControl "180+1"]
[Date "2022.03.09"]
[WhiteClock "0:00:10"]
[BlackClock "0:00:02"]

1. d4 {[%clk 0:03:00]}  Nf6 {[%clk 0:02:58]} 2. Nf3 {[%clk 0:03:00]}  g6 {[%clk 0:02:59]} 3. g3 {[%clk 0:03:00]}  Bg7 {[%clk 0:03:00]} 4. Bg2 {[%clk 0:03:00]}  O-O {[%clk 0:03:01]} 5. O-O {[%clk 0:03:01]}  d6 {[%clk 0:03:02]} 6. b3 {[%clk 0:03:00]}  c6 {[%clk 0:03:03]} 7. Bb2 {[%clk 0:03:00]}  Bf5 {[%clk 0:03:03]} 8. Nbd2 {[%clk 0:03:00]}  Ne4 {[%clk 0:03:03]} 9. Nh4 {[%clk 0:02:59]}  Nxd2 {[%clk 0:03:00]} 10. Qxd2 {[%clk 0:02:54]}  Be6 {[%clk 0:02:56]} 11. e4 {[%clk 0:02:54]}  d5 {[%clk 0:02:54]} 12. Rfe1 {[%clk 0:02:52]}  dxe4 {[%clk 0:02:46]} 13. Bxe4 {[%clk 0:02:51]}  Bd5 {[%clk 0:02:46]} 14. c4 {[%clk 0:02:51]}  Bxe4 {[%clk 0:02:46]} 15. Rxe4 {[%clk 0:02:52]}  e6 {[%clk 0:02:46]} 16. Ng2 {[%clk 0:02:49]}  Nd7 {[%clk 0:02:46]} 17. h4 {[%clk 0:02:49]}  h5 {[%clk 0:02:45]} 18. Rd1 {[%clk 0:02:44]}  a5 {[%clk 0:02:41]} 19. Nf4 {[%clk 0:02:38]}  a4 {[%clk 0:02:39]} 20. Qc2 {[%clk 0:02:34]}  axb3 {[%clk 0:02:39]} 21. axb3 {[%clk 0:02:35]}  Ra2 {[%clk 0:02:35]} 22. Re2 {[%clk 0:02:35]}  Qa5 {[%clk 0:02:15]} 23. Kg2 {[%clk 0:02:17]}  e5 {[%clk 0:02:04]} 24. dxe5 {[%clk 0:02:02]}  Nxe5 {[%clk 0:02:05]} 25. Qe4 {[%clk 0:01:58]}  Re8 {[%clk 0:01:27]} 26. Nd3 {[%clk 0:01:48]}  Re6 {[%clk 0:00:57]} 27. b4 {[%clk 0:00:56]}  Nxd3 {[%clk 0:00:36]} 28. Qxd3 {[%clk 0:00:51]}  Rxe2 {[%clk 0:00:19]} 29. bxa5 {[%clk 0:00:14]}  Raxb2 {[%clk 0:00:18]} 30. Rf1 {[%clk 0:00:14]}  c5 {[%clk 0:00:15]} 31. Qd8+ {[%clk 0:00:14]}  Kh7 {[%clk 0:00:15]} 32. Qc7 {[%clk 0:00:14]}  Kg8 {[%clk 0:00:13]} 33. Qxc5 {[%clk 0:00:14]}  Rbd2 {[%clk 0:00:14]} 34. Qc8+ {[%clk 0:00:12]}  Kh7 {[%clk 0:00:14]} 35. Qxb7 {[%clk 0:00:13]}  Kg8 {[%clk 0:00:15]} 36. Qc8+ {[%clk 0:00:12]}  Kh7 {[%clk 0:00:14]} 37. Qc7 {[%clk 0:00:11]}  Kg8 {[%clk 0:00:14]} 38. a6 {[%clk 0:00:11]}  Bd4 {[%clk 0:00:12]} 39. a7 {[%clk 0:00:11]}  Rxf2+ {[%clk 0:00:02]} 40. Rxf2 {[%clk 0:00:11]}  Rxf2+ {[%clk 0:00:03]} 41. Kh3 {[%clk 0:00:12]}  Bxa7 {[%clk 0:00:02]} 42. Qxa7 {[%clk 0:00:10]}  Rf5 {[%clk 0:00:01]} 43. c5 {[%clk 0:00:10]}  Kf8 {[%clk 0:00:02]} 44. c6 {[%clk 0:00:10]} 1-0


[Site "https://www.chess.com"]

[Event "Titled Tuesday Blitz March 08 Late 2022"]
[White "Derige Kane, Yan"]
[Black "Csonka, Balazs"]
[WhiteFideId "20665431"]
[BlackFideId "742910"]
[WhiteElo "2169"]
[BlackElo "2404"]
[Result "1-0"]
[Round "05"]
[TimeControl "180+1"]
[Date "2022.03.09"]
[WhiteClock "0:01:19"]
[BlackClock "0:00:01"]

1. d4 {[%clk 0:02:45]}  Nf6 {[%clk 0:02:59]} 2. Bg5 {[%clk 0:02:44]}  Ne4 {[%clk 0:02:52]} 3. Bh4 {[%clk 0:02:44]}  c5 {[%clk 0:02:48]} 4. f3 {[%clk 0:02:43]}  g5 {[%clk 0:02:48]} 5. fxe4 {[%clk 0:02:43]}  gxh4 {[%clk 0:02:49]} 6. e3 {[%clk 0:02:43]}  Nc6 {[%clk 0:02:27]} 7. d5 {[%clk 0:02:39]}  Ne5 {[%clk 0:02:26]} 8. Nf3 {[%clk 0:02:39]}  Bg7 {[%clk 0:02:11]} 9. Nbd2 {[%clk 0:02:36]}  d6 {[%clk 0:02:02]} 10. Bb5+ {[%clk 0:02:31]}  Bd7 {[%clk 0:02:02]} 11. Bxd7+ {[%clk 0:02:31]}  Qxd7 {[%clk 0:02:03]} 12. O-O {[%clk 0:02:29]}  h3 {[%clk 0:02:00]} 13. g3 {[%clk 0:02:29]}  Rg8 {[%clk 0:01:56]} 14. Nxe5 {[%clk 0:02:29]}  Bxe5 {[%clk 0:01:57]} 15. Qh5 {[%clk 0:02:29]}  Bf6 {[%clk 0:01:23]} 16. Qxh7 {[%clk 0:02:10]}  Rh8 {[%clk 0:01:09]} 17. Qf5 {[%clk 0:02:07]}  Qxf5 {[%clk 0:01:04]} 18. Rxf5 {[%clk 0:02:08]}  Bxb2 {[%clk 0:01:04]} 19. Rb1 {[%clk 0:02:07]}  Bc3 {[%clk 0:01:04]} 20. Nc4 {[%clk 0:02:07]}  b6 {[%clk 0:00:58]} 21. e5 {[%clk 0:02:07]}  Bxe5 {[%clk 0:00:37]} 22. Nxe5 {[%clk 0:02:07]}  dxe5 {[%clk 0:00:38]} 23. Rxe5 {[%clk 0:02:04]}  Rd8 {[%clk 0:00:34]} 24. c4 {[%clk 0:02:04]}  Rd6 {[%clk 0:00:32]} 25. a4 {[%clk 0:02:03]}  Kd7 {[%clk 0:00:30]} 26. e4 {[%clk 0:02:00]}  e6 {[%clk 0:00:28]} 27. Rf1 {[%clk 0:01:59]}  Ke7 {[%clk 0:00:27]} 28. Rg5 {[%clk 0:01:59]}  exd5 {[%clk 0:00:24]} 29. exd5 {[%clk 0:01:55]}  Re8 {[%clk 0:00:16]} 30. Rg7 {[%clk 0:01:31]}  Rf6 {[%clk 0:00:15]} 31. Rh7 {[%clk 0:01:32]}  Rxf1+ {[%clk 0:00:12]} 32. Kxf1 {[%clk 0:01:33]}  Kf6 {[%clk 0:00:12]} 33. Rxh3 {[%clk 0:01:33]}  Re3 {[%clk 0:00:11]} 34. Rh4 {[%clk 0:01:32]}  Ra3 {[%clk 0:00:10]} 35. Rf4+ {[%clk 0:01:32]}  Ke7 {[%clk 0:00:10]} 36. h4 {[%clk 0:01:31]}  Rxg3 {[%clk 0:00:10]} 37. Kf2 {[%clk 0:01:30]}  Ra3 {[%clk 0:00:06]} 38. h5 {[%clk 0:01:30]}  Rh3 {[%clk 0:00:03]} 39. Rf5 {[%clk 0:01:30]}  f6 {[%clk 0:00:03]} 40. Ke2 {[%clk 0:01:27]}  Kf7 {[%clk 0:00:02]} 41. d6 {[%clk 0:01:23]}  Ke6 {[%clk 0:00:02]} 42. Rd5 {[%clk 0:01:24]}  Kd7 {[%clk 0:00:01]} 43. Kf2 {[%clk 0:01:23]}  a6 {[%clk 0:00:01]} 44. Kg2 {[%clk 0:01:23]}  Rh4 {[%clk 0:00:02]} 45. Kg3 {[%clk 0:01:23]}  Rh1 {[%clk 0:00:01]} 46. Kg2 {[%clk 0:01:23]}  Rh4 {[%clk 0:00:01]} 47. Rf5 {[%clk 0:01:19]} 1-0


[Site "https://www.chess.com"]

[Event "Titled Tuesday Blitz March 08 Late 2022"]
[White "Dilmukhametov, Artur"]
[Black "Papasimakopoulos, Alexandros"]
[WhiteFideId "24179922"]
[BlackFideId "4244125"]
[WhiteElo "2237"]
[BlackElo "2340"]
[Result "0-1"]
[Round "05"]
[TimeControl "180+1"]
[Date "2022.03.08"]
[WhiteClock "0:00:01"]
[BlackClock "0:01:20"]

1. d4 {[%clk 0:02:51]}  e6 {[%clk 0:02:50]} 2. e4 {[%clk 0:02:50]}  d5 {[%clk 0:02:50]} 3. Nd2 {[%clk 0:02:50]}  Nf6 {[%clk 0:02:49]} 4. e5 {[%clk 0:02:49]}  Nfd7 {[%clk 0:02:49]} 5. Bd3 {[%clk 0:02:49]}  c5 {[%clk 0:02:50]} 6. c3 {[%clk 0:02:50]}  Nc6 {[%clk 0:02:51]} 7. Ne2 {[%clk 0:02:50]}  cxd4 {[%clk 0:02:52]} 8. cxd4 {[%clk 0:02:51]}  f6 {[%clk 0:02:52]} 9. Nf4 {[%clk 0:02:52]}  Nxd4 {[%clk 0:02:52]} 10. Qh5+ {[%clk 0:02:51]}  Ke7 {[%clk 0:02:53]} 11. exf6+ {[%clk 0:02:51]}  Nxf6 {[%clk 0:02:53]} 12. Ng6+ {[%clk 0:02:52]}  hxg6 {[%clk 0:02:53]} 13. Qxh8 {[%clk 0:02:53]}  Kf7 {[%clk 0:02:54]} 14. Qh4 {[%clk 0:02:54]}  e5 {[%clk 0:02:55]} 15. Nf3 {[%clk 0:02:54]}  Nxf3+ {[%clk 0:02:54]} 16. gxf3 {[%clk 0:02:55]}  Bf5 {[%clk 0:02:55]} 17. Bxf5 {[%clk 0:02:55]}  gxf5 {[%clk 0:02:56]} 18. Bg5 {[%clk 0:02:55]}  Qa5+ {[%clk 0:02:55]} 19. Kf1 {[%clk 0:02:55]}  g6 {[%clk 0:02:55]} 20. Qh8 {[%clk 0:02:46]}  Qa6+ {[%clk 0:02:56]} 21. Kg2 {[%clk 0:02:44]}  Rd8 {[%clk 0:02:56]} 22. Rac1 {[%clk 0:02:21]}  Be7 {[%clk 0:02:57]} 23. Qh4 {[%clk 0:02:19]}  Qd6 {[%clk 0:02:57]} 24. Rc2 {[%clk 0:02:03]}  d4 {[%clk 0:02:57]} 25. Rhc1 {[%clk 0:02:03]}  d3 {[%clk 0:02:58]} 26. Qc4+ {[%clk 0:01:13]}  Kg7 {[%clk 0:02:53]} 27. Rd2 {[%clk 0:01:13]}  Nh5 {[%clk 0:02:53]} 28. Qc7 {[%clk 0:00:38]}  Kf8 {[%clk 0:02:38]} 29. Qxd6 {[%clk 0:00:10]}  Rxd6 {[%clk 0:02:39]} 30. Bxe7+ {[%clk 0:00:10]}  Kxe7 {[%clk 0:02:39]} 31. Rc7+ {[%clk 0:00:11]}  Kf6 {[%clk 0:02:40]} 32. Rxb7 {[%clk 0:00:11]}  a6 {[%clk 0:02:41]} 33. a4 {[%clk 0:00:11]}  Nf4+ {[%clk 0:02:41]} 34. Kf1 {[%clk 0:00:04]}  e4 {[%clk 0:02:41]} 35. fxe4 {[%clk 0:00:03]}  fxe4 {[%clk 0:02:42]} 36. a5 {[%clk 0:00:03]}  Nd5 {[%clk 0:02:30]} 37. Rd1 {[%clk 0:00:02]}  Ke5 {[%clk 0:02:30]} 38. Ke1 {[%clk 0:00:02]}  Kd4 {[%clk 0:02:29]} 39. Kd2 {[%clk 0:00:02]}  Rf6 {[%clk 0:02:29]} 40. Rf1 {[%clk 0:00:01]}  g5 {[%clk 0:02:22]} 41. Rd7 {[%clk 0:00:01]}  g4 {[%clk 0:02:19]} 42. Rd8 {[%clk 0:00:02]}  Rf7 {[%clk 0:02:18]} 43. Rd6 {[%clk 0:00:02]}  Rb7 {[%clk 0:02:18]} 44. Kc1 {[%clk 0:00:01]}  Rc7+ {[%clk 0:02:18]} 45. Kb1 {[%clk 0:00:01]}  Rb7 {[%clk 0:01:55]} 46. Rg1 {[%clk 0:00:02]}  Ke5 {[%clk 0:01:43]} 47. Rxa6 {[%clk 0:00:02]}  Nc3+ {[%clk 0:01:43]} 48. Ka1 {[%clk 0:00:02]}  Ne2 {[%clk 0:01:43]} 49. Rd1 {[%clk 0:00:01]}  Nd4 {[%clk 0:01:42]} 50. Rb6 {[%clk 0:00:01]}  Ra7 {[%clk 0:01:39]} 51. a6 {[%clk 0:00:02]}  Kd5 {[%clk 0:01:36]} 52. Rg6 {[%clk 0:00:01]}  Nc2+ {[%clk 0:01:30]} 53. Kb1 {[%clk 0:00:01]}  Nb4 {[%clk 0:01:27]} 54. Kc1 {[%clk 0:00:01]}  Nxa6 {[%clk 0:01:27]} 55. Rxg4 {[%clk 0:00:01]}  Nc5 {[%clk 0:01:27]} 56. Kd2 {[%clk 0:00:02]}  Kd4 {[%clk 0:01:25]} 57. Ke1 {[%clk 0:00:01]}  Rf7 {[%clk 0:01:23]} 58. Kf1 {[%clk 0:00:01]}  Na4 {[%clk 0:01:20]} 0-1


[Site "https://www.chess.com"]

[Event "Titled Tuesday Blitz March 08 Late 2022"]
[White "Gledura, Benjamin"]
[Black "Derraugh, Geordie"]
[WhiteFideId "712779"]
[BlackFideId "2603950"]
[WhiteElo "2326"]
[BlackElo "2116"]
[Result "0-1"]
[Round "05"]
[TimeControl "180+1"]
[Date "2022.03.08"]
[WhiteClock "0:00:18"]
[BlackClock "0:00:16"]

1. e4 {[%clk 0:03:00]}  c5 {[%clk 0:02:59]} 2. Nf3 {[%clk 0:03:00]}  d6 {[%clk 0:02:59]} 3. Nc3 {[%clk 0:03:00]}  Nf6 {[%clk 0:02:59]} 4. e5 {[%clk 0:03:00]}  dxe5 {[%clk 0:02:59]} 5. Nxe5 {[%clk 0:03:01]}  e6 {[%clk 0:02:58]} 6. Bb5+ {[%clk 0:02:56]}  Nbd7 {[%clk 0:02:58]} 7. d4 {[%clk 0:02:56]}  cxd4 {[%clk 0:02:52]} 8. Qxd4 {[%clk 0:02:55]}  a6 {[%clk 0:02:50]} 9. Bc6 {[%clk 0:02:47]}  bxc6 {[%clk 0:02:42]} 10. Nxc6 {[%clk 0:02:43]}  Qc7 {[%clk 0:02:41]} 11. Nb4 {[%clk 0:02:41]}  Bc5 {[%clk 0:02:39]} 12. Qh4 {[%clk 0:02:40]}  Qe5+ {[%clk 0:02:27]} 13. Ne2 {[%clk 0:02:33]}  Qe4 {[%clk 0:02:12]} 14. Qxe4 {[%clk 0:02:33]}  Nxe4 {[%clk 0:02:13]} 15. Nd3 {[%clk 0:02:33]}  Bb6 {[%clk 0:02:07]} 16. Bf4 {[%clk 0:02:17]}  f6 {[%clk 0:02:04]} 17. f3 {[%clk 0:02:14]}  Nec5 {[%clk 0:02:03]} 18. O-O-O {[%clk 0:02:14]}  e5 {[%clk 0:02:02]} 19. Bg3 {[%clk 0:02:14]}  a5 {[%clk 0:01:57]} 20. Nc3 {[%clk 0:02:14]}  Nxd3+ {[%clk 0:01:54]} 21. Rxd3 {[%clk 0:02:13]}  Ba6 {[%clk 0:01:48]} 22. Rdd1 {[%clk 0:02:13]}  Be3+ {[%clk 0:01:46]} 23. Kb1 {[%clk 0:02:13]}  Nb6 {[%clk 0:01:40]} 24. Rhe1 {[%clk 0:02:11]}  Bc5 {[%clk 0:01:36]} 25. f4 {[%clk 0:02:06]}  O-O {[%clk 0:01:24]} 26. fxe5 {[%clk 0:02:06]}  f5 {[%clk 0:01:24]} 27. e6 {[%clk 0:02:03]}  Rfe8 {[%clk 0:01:24]} 28. Bd6 {[%clk 0:01:59]}  Bb4 {[%clk 0:01:16]} 29. e7 {[%clk 0:01:12]}  Rac8 {[%clk 0:01:11]} 30. Bxb4 {[%clk 0:00:59]}  axb4 {[%clk 0:01:10]} 31. Rd6 {[%clk 0:01:00]}  bxc3 {[%clk 0:01:04]} 32. Rxb6 {[%clk 0:01:00]}  Bc4 {[%clk 0:01:04]} 33. b3 {[%clk 0:00:56]}  Bf7 {[%clk 0:01:04]} 34. Rb7 {[%clk 0:00:52]}  g6 {[%clk 0:01:04]} 35. a4 {[%clk 0:00:51]}  Bd5 {[%clk 0:00:57]} 36. Rd7 {[%clk 0:00:47]}  Bxg2 {[%clk 0:00:56]} 37. a5 {[%clk 0:00:46]}  Be4 {[%clk 0:00:51]} 38. a6 {[%clk 0:00:43]}  Kf7 {[%clk 0:00:51]} 39. a7 {[%clk 0:00:41]}  Rxe7 {[%clk 0:00:48]} 40. Rxe7+ {[%clk 0:00:37]}  Kxe7 {[%clk 0:00:49]} 41. Re3 {[%clk 0:00:37]}  Kd6 {[%clk 0:00:39]} 42. Rh3 {[%clk 0:00:37]}  h5 {[%clk 0:00:38]} 43. Re3 {[%clk 0:00:34]}  Ke5 {[%clk 0:00:37]} 44. a8=Q {[%clk 0:00:33]}  Rxa8 {[%clk 0:00:36]} 45. Rxc3 {[%clk 0:00:33]}  f4 {[%clk 0:00:36]} 46. Kc1 {[%clk 0:00:33]}  Kd4 {[%clk 0:00:35]} 47. Kd2 {[%clk 0:00:32]}  Rf8 {[%clk 0:00:30]} 48. Rc4+ {[%clk 0:00:26]}  Ke5 {[%clk 0:00:30]} 49. Ke2 {[%clk 0:00:26]}  g5 {[%clk 0:00:28]} 50. Rc5+ {[%clk 0:00:26]}  Kf6 {[%clk 0:00:28]} 51. Rc4 {[%clk 0:00:25]}  Kf5 {[%clk 0:00:28]} 52. Kf2 {[%clk 0:00:23]}  Rd8 {[%clk 0:00:27]} 53. Ke2 {[%clk 0:00:23]}  g4 {[%clk 0:00:19]} 54. Rc5+ {[%clk 0:00:24]}  Rd5 {[%clk 0:00:19]} 55. Rc8 {[%clk 0:00:24]}  f3+ {[%clk 0:00:19]} 56. Ke3 {[%clk 0:00:23]}  Re5 {[%clk 0:00:19]} 57. Rf8+ {[%clk 0:00:23]}  Kg5 {[%clk 0:00:19]} 58. c4 {[%clk 0:00:19]}  Bc2+ {[%clk 0:00:16]} 59. Kf2 {[%clk 0:00:19]}  Re2+ {[%clk 0:00:16]} 60. Kf1 {[%clk 0:00:18]}  Bxb3 {[%clk 0:00:16]} 61. c5 {[%clk 0:00:19]}  Rxh2 {[%clk 0:00:15]} 62. c6 {[%clk 0:00:19]}  Rc2 {[%clk 0:00:16]} 63. Rc8 {[%clk 0:00:18]}  g3 {[%clk 0:00:16]} 0-1


[Site "https://www.chess.com"]

[Event "Titled Tuesday Blitz March 08 Late 2022"]
[White "Goltseva, Ekaterina"]
[Black "Babazada, Khazar"]
[WhiteFideId "24173770"]
[BlackFideId "13413554"]
[WhiteElo "2140"]
[BlackElo "2418"]
[Result "1-0"]
[Round "05"]
[TimeControl "180+1"]
[Date "2022.03.08"]
[WhiteClock "0:00:08"]
[BlackClock "0:00:04"]

1. d4 {[%clk 0:03:00]}  Nf6 {[%clk 0:02:59]} 2. c4 {[%clk 0:03:00]}  g6 {[%clk 0:02:59]} 3. Nc3 {[%clk 0:02:59]}  Bg7 {[%clk 0:02:58]} 4. e4 {[%clk 0:02:59]}  d6 {[%clk 0:02:59]} 5. Nge2 {[%clk 0:02:59]}  O-O {[%clk 0:02:56]} 6. Ng3 {[%clk 0:03:00]}  h5 {[%clk 0:02:55]} 7. Be2 {[%clk 0:02:55]}  h4 {[%clk 0:02:54]} 8. Nf1 {[%clk 0:02:56]}  h3 {[%clk 0:02:53]} 9. g4 {[%clk 0:02:50]}  Na6 {[%clk 0:02:51]} 10. Ng3 {[%clk 0:02:43]}  e5 {[%clk 0:02:46]} 11. d5 {[%clk 0:02:40]}  c6 {[%clk 0:02:33]} 12. Be3 {[%clk 0:02:26]}  cxd5 {[%clk 0:02:13]} 13. cxd5 {[%clk 0:02:25]}  Bd7 {[%clk 0:02:10]} 14. f3 {[%clk 0:02:09]}  Rc8 {[%clk 0:01:43]} 15. Bxa6 {[%clk 0:01:58]}  bxa6 {[%clk 0:01:43]} 16. Bxa7 {[%clk 0:01:47]}  Rxc3 {[%clk 0:01:21]} 17. bxc3 {[%clk 0:01:42]}  Qc7 {[%clk 0:01:21]} 18. Be3 {[%clk 0:01:29]}  Qxc3+ {[%clk 0:01:21]} 19. Kf2 {[%clk 0:01:21]}  Rb8 {[%clk 0:01:00]} 20. Rb1 {[%clk 0:00:48]}  Rxb1 {[%clk 0:00:35]} 21. Qxb1 {[%clk 0:00:49]}  Bxg4 {[%clk 0:00:35]} 22. Rc1 {[%clk 0:00:49]}  Qa5 {[%clk 0:00:24]} 23. fxg4 {[%clk 0:00:37]}  Nxg4+ {[%clk 0:00:24]} 24. Ke2 {[%clk 0:00:30]}  Nxe3 {[%clk 0:00:21]} 25. Rc8+ {[%clk 0:00:25]}  Kh7 {[%clk 0:00:20]} 26. Kxe3 {[%clk 0:00:26]}  Bh6+ {[%clk 0:00:19]} 27. Kf3 {[%clk 0:00:15]}  Qd2 {[%clk 0:00:18]} 28. Kg4 {[%clk 0:00:05]}  Qxh2 {[%clk 0:00:12]} 29. Rc2 {[%clk 0:00:03]}  Bd2 {[%clk 0:00:10]} 30. Qd1 {[%clk 0:00:01]}  f5+ {[%clk 0:00:08]} 31. exf5 {[%clk 0:00:02]}  gxf5+ {[%clk 0:00:09]} 32. Kxf5 {[%clk 0:00:01]}  Qf2+ {[%clk 0:00:09]} 33. Ke6 {[%clk 0:00:01]}  Qxg3 {[%clk 0:00:03]} 34. Qxd2 {[%clk 0:00:02]}  Qg6+ {[%clk 0:00:03]} 35. Kd7 {[%clk 0:00:02]}  Qf5+ {[%clk 0:00:02]} 36. Kc6 {[%clk 0:00:03]}  e4 {[%clk 0:00:03]} 37. Qe2 {[%clk 0:00:03]}  e3 {[%clk 0:00:03]} 38. Rc4 {[%clk 0:00:03]}  h2 {[%clk 0:00:04]} 39. Rh4+ {[%clk 0:00:03]}  Kg7 {[%clk 0:00:04]} 40. Rxh2 {[%clk 0:00:04]}  Qc8+ {[%clk 0:00:03]} 41. Kxd6 {[%clk 0:00:04]}  Qd8+ {[%clk 0:00:04]} 42. Ke5 {[%clk 0:00:05]}  Qe7+ {[%clk 0:00:04]} 43. Kd4 {[%clk 0:00:05]}  Qb4+ {[%clk 0:00:04]} 44. Kxe3 {[%clk 0:00:06]}  Qc3+ {[%clk 0:00:04]} 45. Kf2 {[%clk 0:00:06]}  Qd4+ {[%clk 0:00:04]} 46. Qe3 {[%clk 0:00:06]}  Qb2+ {[%clk 0:00:05]} 47. Qe2 {[%clk 0:00:07]}  Qd4+ {[%clk 0:00:05]} 48. Kf1 {[%clk 0:00:07]}  Qf4+ {[%clk 0:00:04]} 49. Rf2 {[%clk 0:00:08]} 1-0


[Site "https://www.chess.com"]

[Event "Titled Tuesday Blitz March 08 Late 2022"]
[White "Golubev, Mikhail"]
[Black "Vine, Elzbieta"]
[WhiteFideId "14100983"]
[BlackFideId "1119320"]
[WhiteElo "2374"]
[BlackElo "1821"]
[Result "1-0"]
[Round "05"]
[TimeControl "180+1"]
[Date "2022.03.09"]
[WhiteClock "0:00:22"]
[BlackClock "0:00:38"]

1. e4 {[%clk 0:02:05]}  c5 {[%clk 0:02:58]} 2. Nf3 {[%clk 0:02:04]}  d6 {[%clk 0:02:58]} 3. d4 {[%clk 0:02:04]}  cxd4 {[%clk 0:02:57]} 4. Nxd4 {[%clk 0:02:05]}  Nf6 {[%clk 0:02:57]} 5. Nc3 {[%clk 0:02:06]}  a6 {[%clk 0:02:57]} 6. Bc4 {[%clk 0:02:05]}  b5 {[%clk 0:02:53]} 7. Bb3 {[%clk 0:02:01]}  Bb7 {[%clk 0:02:48]} 8. O-O {[%clk 0:02:00]}  g6 {[%clk 0:02:44]} 9. f4 {[%clk 0:01:50]}  Bg7 {[%clk 0:02:43]} 10. e5 {[%clk 0:01:44]}  Ne4 {[%clk 0:02:32]} 11. e6 {[%clk 0:01:21]}  f5 {[%clk 0:02:24]} 12. Nxf5 {[%clk 0:01:20]}  Bxc3 {[%clk 0:01:57]} 13. bxc3 {[%clk 0:01:19]}  Nxc3 {[%clk 0:01:54]} 14. Ng7+ {[%clk 0:00:49]}  Kf8 {[%clk 0:01:51]} 15. Qd3 {[%clk 0:00:48]}  Ne4 {[%clk 0:01:26]} 16. Bb2 {[%clk 0:00:37]}  Rg8 {[%clk 0:01:25]} 17. f5 {[%clk 0:00:34]}  Rxg7 {[%clk 0:01:22]} 18. fxg6+ {[%clk 0:00:30]}  Kg8 {[%clk 0:01:04]} 19. Bxg7 {[%clk 0:00:28]}  Kxg7 {[%clk 0:01:04]} 20. Rf7+ {[%clk 0:00:28]}  Kxg6 {[%clk 0:01:02]} 21. Raf1 {[%clk 0:00:27]}  Qb6+ {[%clk 0:01:00]} 22. Kh1 {[%clk 0:00:26]}  a5 {[%clk 0:00:45]} 23. Qh3 {[%clk 0:00:24]}  h5 {[%clk 0:00:38]} 24. Qf5+ {[%clk 0:00:22]} 1-0


[Site "https://www.chess.com"]